bitfinex-derivatives/quotes_BNBF0:USTF0_20250303
["timestamp","ask_amount","ask_price","bid_price","bid_amount"]
[1741015577053,3.406,594.24,593.69,0.27064067]
[1741015577258,3.406,594.24,593.7,0.27064067]
[1741015577558,3.406,594.24,593.71,0.27064067]
[1741015577758,3.406,594.24,593.68,0.33688182]
[1741015577759,3.406,594.24,593.69,0.27064067]
[1741015578063,3.406,594.24,593.7,0.27064067]
[1741015578451,3.406,594.24,593.71,0.27064067]
[1741015578654,3.406,594.24,593.72,0.27064067]
[1741015578959,3.406,594.24,593.73,0.27064067]
[1741015579152,3.406,594.24,593.69,0.27064067]
[1741015579357,3.406,594.24,593.7,0.27064067]
[1741015579558,3.406,594.24,593.71,0.27064067]
[1741015579754,3.406,594.24,593.72,0.27064067]
[1741015580057,3.406,594.24,593.73,0.27064067]
[1741015580255,3.406,594.24,593.69,0.27064067]
[1741015580456,3.406,594.24,593.7,0.27064067]
[1741015580652,3.406,594.24,593.68,0.33688182]
[1741015580653,3.406,594.24,593.71,0.27064067]
[1741015580854,3.406,594.24,593.72,0.27064067]
[1741015581053,3.406,594.24,593.69,0.27064067]
[1741015581252,3.406,594.24,593.73,0.27064067]
[1741015581457,3.406,594.24,593.7,0.27064067]
[1741015581653,3.406,594.24,593.71,0.27064067]
[1741015581856,3.406,594.24,593.69,0.27064067]
[1741015582054,3.406,594.24,593.7,0.27064067]
[1741015582256,3.406,594.24,593.71,0.27064067]
[1741015582460,3.406,594.24,593.72,0.27064067]
[1741015582661,3.406,594.24,593.73,0.27064067]
[1741015582959,3.406,594.24,593.74,0.27064067]
[1741015583160,3.406,594.24,593.69,0.27064067]
[1741015583363,3.406,594.24,593.7,0.27064067]
[1741015583558,3.406,594.24,593.69,0.27064067]
[1741015583959,1.825,594.24,593.69,0.27064067]
[1741015584557,1.825,594.24,593.68,0.33688182]
[1741015584761,1.825,594.24,593.69,0.27066336]
[1741015584958,1.825,594.24,593.7,0.27066336]
[1741015585257,1.328,594.23,593.71,0.27066336]
[1741015585457,1.328,594.23,593.72,0.27066336]
[1741015585763,1.328,594.23,593.73,0.27066336]
[1741015585965,1.328,594.23,593.69,0.27066336]
[1741015586166,1.328,594.23,593.68,0.33688182]
[1741015586465,1.328,594.23,593.69,0.27063512]
[1741015586670,1.328,594.23,593.7,0.27063512]
[1741015586967,1.328,594.23,593.71,0.60749991]
[1741015587165,1.328,594.23,593.72,0.60749424]
[1741015587365,1.328,594.23,593.73,0.27063512]
[1741015587567,1.328,594.23,594.15,1.24955901]
[1741015587766,1.328,594.23,594.16,0.27063512]
[1741015589561,1.328,594.23,594.17,0.27061165]
[1741015589762,1.328,594.23,594.16,0.27061165]
[1741015589969,1.328,594.23,594.17,0.27061165]
[1741015590161,1.328,594.23,594.16,0.27061165]
[1741015590566,1.328,594.23,594.15,1.24955901]
[1741015592162,1.328,594.23,593.99,1.24955901]
[1741015592370,1.328,594.23,594.0,0.27056518]
[1741015592967,1.328,594.23,594.01,0.27056518]
[1741015593168,1.328,594.23,594.02,0.336689]
[1741015593470,1.328,594.23,594.03,0.27056518]
[1741015593665,1.328,594.23,594.04,0.33667766]
[1741015593864,1.328,594.23,594.05,0.27056518]
[1741015594064,1.328,594.23,594.06,0.33666633]
[1741015594267,1.328,594.23,594.07,0.27056518]
[1741015594466,1.328,594.23,594.08,0.33665499]
[1741015594674,1.328,594.23,594.09,0.27056518]
[1741015594973,1.328,594.23,594.15,1.24955901]
[1741015595172,1.328,594.23,594.16,0.27056518]
[1741015595772,1.328,594.23,594.17,0.336604]
[1741015595974,1.328,594.23,594.18,0.27046746]
[1741015596569,1.328,594.23,594.19,0.33659267]
[1741015596874,1.328,594.23,594.2,0.27046746]
[1741015597268,0.96028735,594.23,594.2,0.27046746]
[1741015599075,0.96028735,594.23,594.11,1.24592306]
[1741015599275,0.96028735,594.23,594.12,0.27059665]
[1741015601368,0.96028735,594.23,594.05,0.27059665]
[1741015602378,0.96028735,594.23,594.06,0.27058365]
[1741015602674,0.96028735,594.23,594.07,0.27058365]
[1741015602877,0.96028735,594.23,594.08,0.27058365]
[1741015603075,0.96028735,594.23,594.21,1.24592306]
[1741015605577,0.96028735,594.23,593.86,1.24592306]
[1741015605780,0.96028735,594.23,594.05,1.25198409]
[1741015607982,0.96028735,594.23,593.88,1.25198409]
[1741015609083,0.96028735,594.23,593.89,0.27082329]
[1741015610383,0.96028735,594.23,593.76,1.25198409]
[1741015610577,0.96028735,594.23,593.77,0.27081075]
[1741015613083,0.96028735,594.23,593.78,0.27081075]
[1741015613286,0.96028735,594.23,593.75,0.27081075]
[1741015614886,0.96028735,594.23,593.95,1.25198409]
[1741015615189,0.96028735,594.23,593.96,0.27081075]
[1741015615392,0.96028735,594.23,593.97,0.27075159]
[1741015615587,0.96028735,594.23,593.98,0.27075159]
[1741015615886,0.96028735,594.23,593.99,0.27075159]
[1741015616083,0.96028735,594.23,593.96,0.27075159]
[1741015616286,0.96028735,594.23,593.97,0.27075159]
[1741015616486,0.96028735,594.23,593.98,0.27075159]
[1741015616688,0.96028735,594.23,593.99,0.27075159]
[1741015616888,0.96028735,594.23,593.96,0.27075159]
[1741015617888,0.96028735,594.23,593.85,0.27075159]
[1741015618094,0.96028735,594.23,593.86,0.27075159]
[1741015618288,0.96028735,594.23,593.87,0.27075159]
[1741015618493,0.96028735,594.23,593.84,1.25198409]
[1741015618688,1.488,594.22,593.85,0.27075503]
[1741015620390,1.488,594.22,593.89,1.25198409]
[1741015620587,1.488,594.22,593.9,0.27075503]
[1741015621389,1.488,594.22,593.89,1.25198409]
[1741015621390,1.488,594.22,593.91,0.27065468]
[1741015621599,1.488,594.22,593.9,0.27065468]
[1741015621800,1.488,594.22,593.89,1.25198409]
[1741015621801,1.488,594.22,593.91,0.27065468]
[1741015621995,1.488,594.22,593.92,0.27065468]
[1741015622204,1.488,594.22,593.93,0.27065468]
[1741015622498,1.488,594.22,593.94,0.27059335]
[1741015622698,1.488,594.22,593.93,0.27059335]
[1741015624398,1.488,594.22,593.94,0.27059335]
[1741015624597,1.488,594.22,593.95,0.27059335]
[1741015624799,1.488,594.22,593.96,0.27059335]
[1741015625002,1.488,594.22,594.03,1.25198409]
[1741015625192,1.488,594.22,594.04,0.27059335]
[1741015625501,1.488,594.22,594.05,0.27059335]
[1741015625696,1.488,594.22,594.06,0.27059335]
[1741015625892,1.488,594.22,594.07,0.27059335]
[1741015626095,1.488,594.22,594.08,0.27059335]
[1741015626295,1.488,594.22,594.09,0.27059335]
[1741015626495,1.488,594.22,594.1,0.27059335]
[1741015626699,1.488,594.22,594.11,0.27059335]
[1741015626896,1.488,594.22,594.12,0.27059335]
[1741015627099,1.488,594.22,594.04,0.27059335]
[1741015627301,1.488,594.22,594.05,0.27059335]
[1741015627503,1.488,594.22,594.06,0.27059335]
[1741015627698,1.488,594.22,594.07,0.27059335]
[1741015627903,1.488,594.22,594.03,1.25198409]
[1741015628100,1.488,594.22,594.04,0.27035969]
[1741015628297,1.488,594.22,594.03,1.25198409]
[1741015628298,1.488,594.22,594.05,0.27035969]
[1741015628495,1.488,594.22,594.06,0.27035969]
[1741015628697,1.488,594.22,594.18,1.24955901]
[1741015628899,1.12047338,594.22,594.19,0.27035969]
[1741015630399,1.12047338,594.22,594.07,0.27035969]
[1741015630600,1.12047338,594.22,594.08,0.27035969]
[1741015630802,1.12047338,594.22,594.07,0.27035969]
[1741015631003,1.12047338,594.22,594.08,0.27035969]
[1741015631202,1.12047338,594.22,594.07,0.27035969]
[1741015631400,1.12047338,594.22,594.08,0.27035969]
[1741015631603,1.12047338,594.22,594.09,0.27035969]
[1741015631799,1.12047338,594.22,594.07,0.27035969]
[1741015632099,1.12047338,594.22,594.08,0.27035969]
[1741015632301,1.12047338,594.22,594.09,0.27035969]
[1741015632500,1.12047338,594.22,594.1,1.24074379]
[1741015632802,1.12047338,594.22,594.11,0.27035969]
[1741015633003,1.12047338,594.22,594.12,0.27035969]
[1741015633302,1.12047338,594.22,594.13,0.27035969]
[1741015633509,1.12047338,594.22,594.11,0.27035969]
[1741015633707,1.12047338,594.22,594.12,0.27035969]
[1741015633908,1.12047338,594.22,594.11,0.27035969]
[1741015634105,1.12047338,594.22,594.12,0.27035969]
[1741015634310,1.12047338,594.22,594.11,0.27035969]
[1741015634512,1.12047338,594.22,594.12,0.27035969]
[1741015634811,1.12047338,594.22,594.13,0.27035969]
[1741015635004,1.12047338,594.22,594.11,0.27035969]
[1741015635212,1.12047338,594.22,594.12,0.27035969]
[1741015635415,1.12047338,594.22,594.16,1.24074379]
[1741015635608,1.12047338,594.22,594.17,0.27035969]
[1741015635811,0.96028735,594.23,594.17,0.27035969]
[1741015638017,0.96028735,594.23,594.17,1.51110348]
[1741015638218,0.96028735,594.23,594.18,0.27035969]
[1741015640114,1.376,594.33,594.18,0.27035969]
[1741015641006,1.376,594.33,593.9,0.27035969]
[1741015641207,1.376,594.33,594.19,0.27035969]
[1741015641421,1.376,594.33,594.2,0.27035969]
[1741015641713,1.376,594.33,594.21,0.27035969]
[1741015641908,1.376,594.33,593.9,0.27035969]
[1741015642212,1.376,594.33,593.91,0.27035969]
[1741015642409,1.376,594.33,593.9,0.27035969]
[1741015642614,1.376,594.33,593.91,0.27035969]
[1741015642921,1.376,594.33,593.92,0.27035969]
[1741015643213,1.376,594.33,593.95,1.24074379]
[1741015643407,1.376,594.33,593.96,0.27035969]
[1741015645012,1.376,594.33,593.97,0.27035969]
[1741015645210,1.376,594.33,593.98,0.27035969]
[1741015647710,1.376,594.33,594.31,1.24074379]
[1741015647915,1.376,594.33,594.32,0.27035969]
[1741015650017,1.376,594.33,594.31,1.24074379]
[1741015650210,1.376,594.33,594.32,0.27041207]
[1741015652819,1.671,594.49,594.32,0.27041207]
[1741015653023,1.671,594.49,594.33,0.27041207]
[1741015653514,1.671,594.49,594.34,0.27041207]
[1741015653720,1.671,594.49,594.35,0.27041207]
[1741015653921,1.671,594.49,594.36,0.27041207]
[1741015654118,1.671,594.49,594.37,0.27041207]
[1741015654320,1.671,594.49,594.38,0.27041207]
[1741015654545,1.671,594.49,594.39,0.27041207]
[1741015654725,1.671,594.49,594.4,0.27041207]
[1741015654926,1.671,594.49,594.41,0.27041207]
[1741015655123,1.671,594.49,594.45,1.49946315]
[1741015655321,1.30351992,594.49,594.46,0.27041207]
[1741015656225,1.30351992,594.49,594.47,0.27020989]
[1741015656428,1.30351992,594.49,594.45,1.49946315]
[1741015656429,1.30351992,594.49,594.48,0.27020989]
[1741015657023,1.30351992,594.49,594.44,0.27020989]
[1741015657226,1.30351992,594.49,594.45,0.27020989]
[1741015657427,1.30351992,594.49,594.46,0.27020989]
[1741015657630,1.30351992,594.49,594.47,0.27020989]
[1741015657825,1.30351992,594.49,594.43,0.96690904]
[1741015658026,1.30351992,594.49,594.44,0.27023577]
[1741015659330,1.30351992,594.49,594.42,1.49946315]
[1741015659637,1.30351992,594.49,594.43,0.27025893]
[1741015661538,1.30351992,594.49,594.45,1.24712581]
[1741015661741,1.30351992,594.49,594.46,0.27025893]
[1741015663937,1.30351992,594.49,594.47,0.60669306]
[1741015664144,1.30351992,594.49,594.47,2.82072791]
[1741015664336,1.30351992,594.49,594.48,0.27025893]
[1741015666342,1.30351992,594.49,594.48,1.23716797]
[1741015670341,1.30351992,594.49,594.48,0.96690904]
[1741015670542,1.30351992,594.49,594.48,1.23707628]
[1741015673339,1.30351992,594.49,594.48,2.47895272]
[1741015674538,1.30351992,594.49,594.48,2.81538119]
[1741015675544,1.30351992,594.49,594.48,1.57350475]
[1741015675847,0.93621455,594.49,594.48,1.57350475]
[1741015677248,0.93621455,594.49,594.48,0.60659571]
[1741015679748,0.93621455,594.49,594.48,1.57350475]
[1741015682554,0.93621455,594.49,594.48,1.30333751]
[1741015685559,1.339,594.74,594.48,1.30333751]
[1741015685749,1.339,594.74,594.49,0.33642281]
[1741015685954,2.011,594.76,594.49,0.33642281]
[1741015686251,2.011,594.76,594.5,0.27008617]
[1741015686458,2.011,594.76,594.51,0.60649766]
[1741015686651,2.011,594.76,594.52,0.60649201]
[1741015686851,2.011,594.76,594.53,0.60648635]
[1741015687054,2.011,594.76,594.54,0.60648069]
[1741015687358,2.011,594.76,594.66,2.55046742]
[1741015687558,2.011,594.76,594.67,0.60640715]
[1741015687752,2.011,594.76,594.68,0.60640149]
[1741015687959,2.011,594.76,594.69,0.27008617]
[1741015688257,2.011,594.76,594.7,0.27008617]
[1741015688452,2.011,594.76,594.71,0.27008617]
[1741015688656,2.011,594.76,594.72,0.27008617]
[1741015688952,2.011,594.76,594.73,0.27008617]
[1741015689158,1.142,594.82,594.74,0.27008617]
[1741015689359,1.142,594.82,594.75,0.27008617]
[1741015689557,1.142,594.82,594.76,0.60635626]
[1741015689755,1.142,594.82,594.77,0.6063506]
[1741015689956,1.142,594.82,587.62,9.87988165]
[1741015689957,1.142,594.82,594.78,0.60634495]
[1741015690156,1.142,594.82,594.79,0.27008617]
[1741015690454,1.142,594.82,594.78,0.33625878]
[1741015690651,1.142,594.82,594.79,0.27002267]
[1741015690856,1.142,594.82,594.8,0.27002267]
[1741015691160,1.142,594.82,594.81,0.60626449]
[1741015695063,1.142,594.82,594.81,1.30315086]
[1741015695260,1.142,594.82,594.81,1.57315623]
[1741015696760,1.142,594.82,594.81,1.5731375]
[1741015697057,0.77484873,594.82,594.81,1.5731375]
[1741015699965,0.77484873,594.82,594.81,1.57306566]
[1741015700861,0.77484873,594.82,594.81,1.30315086]
[1741015701061,0.77484873,594.82,594.81,1.57307652]
[1741015703063,0.77484873,594.82,594.81,1.30315086]
[1741015703258,0.77484873,594.82,594.81,1.57303805]
[1741015704761,1.456,595.0,594.81,1.57301169]
[1741015704962,1.456,595.0,594.82,0.606097]
[1741015705160,1.456,595.0,594.83,0.26986083]
[1741015705359,1.456,595.0,594.84,0.26986083]
[1741015705559,1.456,595.0,594.85,0.26986083]
[1741015705762,1.456,595.0,594.86,0.60607439]
[1741015705963,1.456,595.0,594.87,0.60606874]
[1741015706162,1.456,595.0,594.88,0.33620225]
[1741015706360,1.456,595.0,594.89,0.26988491]
[1741015706561,1.456,595.0,594.9,0.26988491]
[1741015706765,1.456,595.0,594.93,2.54457048]
[1741015706965,1.456,595.0,594.94,0.26988491]
[1741015707165,1.456,595.0,594.95,0.26988491]
[1741015707365,1.456,595.0,594.96,0.26988491]
[1741015707572,1.456,595.0,594.97,0.60603631]
[1741015707861,1.456,595.0,594.98,0.60603066]
[1741015708062,1.456,595.0,594.99,0.26988491]
[1741015709367,1.456,595.0,594.99,1.23679395]
[1741015710863,1.456,595.0,594.99,1.23694043]
[1741015712368,1.456,595.0,594.99,0.60617149]
[1741015713964,1.456,595.0,594.99,0.60619177]
[1741015714167,1.382,595.2,594.99,0.60619177]
[1741015714368,1.382,595.2,595.0,0.60618612]
[1741015714565,1.382,595.2,595.01,0.60618047]
[1741015714767,1.382,595.2,595.02,0.27005167]
[1741015715472,1.382,595.2,595.03,0.60617367]
[1741015715668,1.382,595.2,595.04,0.60616802]
[1741015715876,1.382,595.2,595.05,0.60616237]
[1741015716078,1.382,595.2,595.06,0.60615673]
[1741015716274,1.382,595.2,595.07,0.33609491]
[1741015717974,1.382,595.2,595.08,0.27009908]
[1741015718477,1.382,595.2,595.07,0.33609491]
[1741015720970,1.382,595.2,595.08,0.27015669]
[1741015721172,1.382,595.2,595.07,0.33609491]
[1741015722078,1.382,595.2,595.08,0.27013627]
[1741015723276,1.382,595.2,595.07,0.33609491]
[1741015723474,1.382,595.2,595.08,0.27010596]
[1741015724574,1.382,595.2,595.1,1.24915122]
[1741015724778,1.382,595.2,595.11,0.27010596]
[1741015724978,1.382,595.2,595.12,0.27003256]
[1741015725180,1.382,595.2,595.11,0.27003256]
[1741015725378,1.382,595.2,595.12,0.27003256]
[1741015725579,1.382,595.2,595.13,0.27003256]
[1741015725777,1.382,595.2,595.14,0.27003256]
[1741015725976,1.382,595.2,595.15,0.27003256]
[1741015726181,1.382,595.2,595.11,0.27003256]
[1741015726485,1.382,595.2,595.12,0.27003256]
[1741015726677,1.382,595.2,595.11,0.27003256]
[1741015726882,1.382,595.2,595.12,0.27003256]
[1741015727178,1.382,595.2,595.15,1.24915122]
[1741015727385,1.382,595.2,595.16,0.27003256]
[1741015732483,1.382,595.2,595.15,1.24915122]
[1741015732683,1.382,595.2,595.16,0.270036]
[1741015733086,1.382,595.2,595.08,0.270036]
[1741015734789,1.382,595.2,595.13,1.24802873]
[1741015735088,1.382,595.2,595.14,0.270036]
[1741015735592,1.382,595.2,595.13,1.24802873]
[1741015735887,1.382,595.2,595.14,0.26999635]
[1741015737490,1.382,595.2,595.16,1.24915122]
[1741015737689,1.382,595.2,595.17,0.26999635]
[1741015739893,1.382,595.2,595.17,1.51901771]
[1741015740097,1.382,595.2,595.18,0.26999635]
[1741015742004,1.382,595.2,595.19,0.95855384]
[1741015742199,1.382,595.2,595.19,1.22855019]
[1741015742801,1.382,595.2,595.19,1.22857468]
[1741015744996,1.335,595.36,595.19,1.52259245]
[1741015745201,1.335,595.36,595.2,0.27002084]
[1741015746098,1.335,595.36,595.19,1.25257161]
[1741015748303,1.335,595.36,595.2,0.27007151]
[1741015748700,1.335,595.36,595.21,0.27007151]
[1741015748908,1.335,595.36,595.15,0.27007151]
[1741015749108,1.335,595.36,595.22,0.27007151]
[1741015749308,1.335,595.36,595.14,1.25257161]
[1741015749501,1.335,595.36,595.15,0.2700743]
[1741015749704,1.335,595.36,595.16,0.27007364]
[1741015749899,1.335,595.36,595.15,0.27007364]
[1741015750101,1.335,595.36,595.16,0.27007364]
[1741015750307,1.335,595.36,595.15,0.27007364]
[1741015751005,1.335,595.36,595.35,1.25403795]
[1741015751507,1.335,595.36,595.35,1.52406286]
[1741015751703,1.802,595.47,595.35,1.52406286]
[1741015751906,1.802,595.47,595.36,0.27002491]
[1741015752708,1.802,595.47,595.35,1.25403795]
[1741015752910,1.802,595.47,595.36,0.2700103]
[1741015754208,1.802,595.47,595.37,0.2700103]
[1741015754409,1.802,595.47,595.15,1.24915122]
[1741015754410,1.802,595.47,595.16,0.2700103]
[1741015754812,1.352,595.46,595.16,0.2700103]
[1741015755913,1.352,595.46,595.17,0.2699364]
[1741015756110,1.352,595.46,595.18,0.2699364]
[1741015756315,1.352,595.46,595.16,0.2699364]
[1741015756614,1.352,595.46,595.17,0.2699364]
[1741015756813,1.352,595.46,595.44,1.24915122]
[1741015757013,1.352,595.46,595.45,0.2699364]
[1741015759415,1.352,595.46,595.45,1.22982587]
[1741015762213,1.352,595.46,595.45,1.22976855]
[1741015764616,1.352,595.46,595.45,1.22973965]
[1741015766919,1.352,595.46,595.45,1.22976287]
[1741015768721,1.352,595.46,595.45,0.2698734]
[1741015769020,1.352,595.46,595.34,0.2698734]
[1741015769221,1.352,595.46,595.35,0.2698734]
[1741015770019,1.352,595.46,595.36,0.26997262]
[1741015770216,1.352,595.46,595.37,0.26997262]
[1741015770422,1.352,595.46,595.35,0.26997262]
[1741015770615,1.352,595.46,595.36,0.26997262]
[1741015770816,1.352,595.46,595.37,0.26997262]
[1741015771016,1.352,595.46,595.38,0.26997262]
[1741015771219,1.352,595.46,595.39,0.26997262]
[1741015771517,1.352,595.46,595.35,0.26997262]
[1741015771722,1.352,595.46,595.36,0.26997262]
[1741015771917,1.352,595.46,595.35,0.26997262]
[1741015772119,1.352,595.46,595.36,0.26997262]
[1741015772321,1.352,595.46,595.35,0.26997262]
[1741015772518,1.352,595.46,595.36,0.26997262]
[1741015772721,1.352,595.46,595.37,0.26997262]
[1741015773024,1.352,595.46,595.34,1.58426271]
[1741015773224,1.352,595.46,595.35,0.27006177]
[1741015775326,1.352,595.46,595.34,0.33594248]
[1741015775720,1.352,595.46,595.29,1.24832023]
[1741015776822,1.352,595.46,595.3,0.2701263]
[1741015777026,1.352,595.46,594.98,0.2701263]
[1741015777220,1.352,595.46,594.99,0.2701263]
[1741015777424,1.352,595.46,595.0,0.2701263]
[1741015777626,1.352,595.46,594.98,0.2701263]
[1741015777821,1.199,595.48,594.99,0.2701263]
[1741015778023,1.199,595.48,594.98,0.2701263]
[1741015779025,1.199,595.48,595.23,1.24832023]
[1741015779323,1.199,595.48,595.24,0.27011786]
[1741015780821,1.199,595.48,595.25,0.27008187]
[1741015781124,1.199,595.48,595.26,0.27008187]
[1741015781328,1.199,595.48,595.27,0.27008187]
[1741015781526,1.199,595.48,595.24,0.27008187]
[1741015781722,1.199,595.48,595.25,0.27008187]
[1741015781924,1.199,595.48,595.24,0.27008187]
[1741015782128,1.199,595.48,595.25,0.27008187]
[1741015782324,1.199,595.48,595.19,0.27008187]
[1741015782528,1.199,595.48,595.2,0.27008187]
[1741015782724,1.199,595.48,595.21,0.27008187]
[1741015782925,1.199,595.48,595.22,0.27008187]
[1741015783226,1.199,595.48,595.23,0.27008187]
[1741015783428,1.199,595.48,595.18,1.24832023]
[1741015783429,1.199,595.48,595.19,0.27008187]
[1741015783624,1.199,595.48,595.2,0.27008187]
[1741015783927,1.199,595.48,595.21,0.27008187]
[1741015784121,2.395,595.48,595.19,0.27008187]
[1741015784323,2.395,595.48,595.2,0.27008187]
[1741015784526,2.395,595.48,595.19,0.27008187]
[1741015784827,2.395,595.48,595.18,1.24832023]
[1741015784828,2.395,595.48,595.2,0.27008187]
[1741015785028,2.395,595.48,595.21,0.27008187]
[1741015785231,2.395,595.48,595.19,0.27008187]
[1741015785429,2.395,595.48,595.2,0.27008187]
[1741015785632,2.395,595.48,595.21,0.27008187]
[1741015785928,2.395,595.48,595.22,0.27008187]
[1741015786125,2.395,595.48,595.19,0.27008187]
[1741015786330,2.395,595.48,595.2,0.27008187]
[1741015786630,2.395,595.48,595.21,0.27008187]
[1741015786832,2.395,595.48,595.22,0.27008187]
[1741015787026,2.395,595.48,595.13,1.24832023]
[1741015787027,2.395,595.48,595.14,0.27008187]
[1741015787228,2.395,595.48,595.15,0.27008187]
[1741015787425,2.395,595.48,595.14,0.27008187]
[1741015787627,2.395,595.48,595.16,0.27008187]
[1741015787829,2.395,595.48,595.17,0.27008187]
[1741015788032,2.395,595.48,595.18,0.27008187]
[1741015788232,1.532,595.47,595.19,0.27008187]
[1741015788531,1.532,595.47,595.2,0.27008187]
[1741015788730,1.532,595.47,595.13,1.24832023]
[1741015788931,1.532,595.47,595.21,0.26990005]
[1741015789331,1.532,595.47,595.27,1.24759328]
[1741015789527,1.532,595.47,595.28,0.26990005]
[1741015791930,1.532,595.47,595.29,0.26993571]
[1741015792137,1.532,595.47,595.28,0.26993571]
[1741015792332,1.532,595.47,595.33,1.24759328]
[1741015792534,1.532,595.47,595.34,0.26993571]
[1741015794438,1.532,595.47,595.43,1.24759328]
[1741015794637,1.532,595.47,595.44,0.26993571]
[1741015796835,1.532,595.47,595.45,0.26981553]
[1741015797032,1.532,595.47,595.44,0.26981553]
[1741015797337,1.532,595.47,595.35,0.95491147]
[1741015797338,1.532,595.47,595.45,0.26981553]
[1741015797637,1.532,595.47,595.46,0.26981553]
[1741015797937,1.532,595.47,595.36,0.26981553]
[1741015798133,1.532,595.47,595.35,1.24759328]
[1741015798134,1.532,595.47,595.37,0.26981553]
[1741015798334,1.532,595.47,595.36,0.26981553]
[1741015798631,1.532,595.47,595.35,1.24759328]
[1741015798632,1.532,595.47,595.37,0.26981553]
[1741015798836,1.532,595.47,595.36,0.26981553]
[1741015799036,1.532,595.47,595.37,0.26981553]
[1741015799231,1.532,595.47,595.38,0.26981553]
[1741015799435,1.532,595.47,595.36,0.26981553]
[1741015799638,1.532,595.47,595.37,0.26981553]
[1741015799938,1.532,595.47,595.38,0.26981553]
[1741015800134,1.532,595.47,595.36,0.26981553]
[1741015800336,1.532,595.47,595.37,0.26981553]
[1741015800535,1.532,595.47,595.38,0.26981553]
[1741015800736,1.532,595.47,595.26,0.26981553]
[1741015800938,1.532,595.47,595.27,0.26981553]
[1741015801135,1.532,595.47,595.26,0.26981553]
[1741015802841,1.532,595.47,595.33,1.24759328]
[1741015803035,1.532,595.47,595.34,0.26981553]
[1741015804137,1.532,595.47,595.33,1.24759328]
[1741015804344,1.532,595.47,595.34,0.26981912]
[1741015804540,1.532,595.47,595.33,1.24759328]
[1741015804541,1.532,595.47,595.35,0.26981912]
[1741015804742,1.532,595.47,595.34,0.26981912]
[1741015804942,1.532,595.47,595.35,0.26981912]
[1741015805140,1.532,595.47,595.36,0.26981912]
[1741015805336,1.532,595.47,595.35,0.26981912]
[1741015805542,1.532,595.47,595.36,0.26981912]
[1741015805743,1.532,595.47,595.37,0.26981912]
[1741015805942,1.532,595.47,595.38,0.26981912]
[1741015806137,1.438,595.62,595.39,0.26981912]
[1741015806340,1.438,595.62,595.4,0.26981912]
[1741015806539,1.438,595.62,595.41,0.26981912]
[1741015806843,1.438,595.62,595.42,0.26981912]
[1741015807041,1.438,595.62,595.43,0.26981912]
[1741015807243,1.438,595.62,595.44,0.26981912]
[1741015807544,1.438,595.62,595.45,0.26966009]
[1741015807743,1.438,595.62,595.46,0.26966009]
[1741015807946,1.438,595.62,595.47,0.26966009]
[1741015808243,1.438,595.62,595.48,0.26966009]
[1741015808439,1.438,595.62,595.42,1.24896218]
[1741015808743,1.438,595.62,595.43,0.26958621]
[1741015809140,1.438,595.62,595.44,0.26958621]
[1741015809342,1.438,595.62,595.42,1.24896218]
[1741015809343,1.438,595.62,595.45,0.26958621]
[1741015809543,1.438,595.62,595.46,0.26958621]
[1741015809739,1.438,595.62,595.47,0.26958621]
[1741015809943,1.438,595.62,595.48,0.26958621]
[1741015810239,1.438,595.62,595.49,0.26958621]
[1741015810440,1.438,595.62,595.21,1.49763252]
[1741015810441,1.438,595.62,595.5,0.26958621]
[1741015810743,1.438,595.62,595.51,0.26956275]
[1741015810945,1.438,595.62,595.52,0.26956275]
[1741015811145,1.438,595.62,595.53,0.26956275]
[1741015811344,1.438,595.62,595.54,0.26956275]
[1741015811643,1.438,595.62,595.55,0.26956275]
[1741015811847,1.438,595.62,595.56,0.26956275]
[1741015812045,1.438,595.62,595.57,0.26956275]
[1741015812447,1.438,595.62,595.58,0.26956275]
[1741015812650,1.438,595.62,595.59,0.26956275]
[1741015812842,1.07144292,595.62,595.6,0.26956275]